[Event "Azerbaijan-ch 1st League 2025"]
[Site "Baku"]
[Date "2025.01.13"]
[Round "8.2"]
[White "Atakishiyev, Elmar"]
[Black "Ahmad, Khagan"]
[Result "1/2-1/2"]
[Annotator "RC"]
[ECO "D38"]
[WhiteElo "2408"]
[BlackElo "2406"]
[PlyCount "120"]
[EventDate "2025.01.05"]
[EventType "swiss"]
[EventCountry "AZE"]
[SourceTitle "playchess.com"]
[Source "ChessBase"]
[SourceQuality "1"]
[TimeControl "40/5400+30:1800+30"]

1. d4 {[%emt 0:07:40]} Nf6 {[%emt 0:00:07]} 2. Nf3 {[%emt 0:00:03]} d5 {[%emt 0:00:08]} 3. c4 {[%emt 0:00:13]} e6 {[%emt 0:00:05]} 4. Nc3 {[%emt 0:00:09]} Bb4 {[%emt 0:00:24]} 5. Bg5 {[%emt 0:00:11]} h6 {[%emt 0:00:07]} 6. Bxf6 {[%emt 0:00:06]} Qxf6 {[%emt 0:00:04]} 7. e3 {[%emt 0:00:06]} O-O {[%emt 0:00:19]} 8. Rc1 {[%emt 0:01:47]} dxc4 {[%emt 0:00:12]} 9. Bxc4 {[%emt 0:00:19]} c5 {[%emt 0:00:02]} 10. O-O {[%emt 0:00:27]} cxd4 {[%emt 0:00:10]} 11. Ne4 {[%emt 0:01:07]} Qe7 {[%emt 0:00:03]} 12. Nxd4 {[%emt 0:00:11]} Bd7 {[%emt 0:03:11]} 13. Be2 {[%emt 0:00:08]} Nc6 {[%emt 0:04:20]} 14. a3 {[%emt 0:02:59]} Ba5 {[%emt 0:00:54]} 15. Nb3 {[%emt 0:00:08]} Rfd8 {[%emt 0:28:04]} 16. Qd6 {[%emt 0:04:50]} Qh4 {[%emt 0:01:26]} 17. Nec5 {[%emt 0:02:03]} Be8 {[%emt 0:13:18]} 18. Qg3 {[%emt 0:00:24]} Qe7 {[%emt 0:01:46]} 19. Nxa5 {[%emt 0:10:54]} Nxa5 {[%emt 0:00:05]} 20. b4 {[%emt 0:01:38]} Rac8 {[%emt 0:02:54]} 21. Nxe6 {[%emt 0:13:19]} fxe6 {[%emt 0:03:48]} 22. Rxc8 {[%emt 0:01:45]} Rxc8 {[%emt 0:00:04]} 23. bxa5 {[%emt 0:00:05]} Qxa3 {[%emt 0:00:15]} 24. Qe5 {[%emt 0:00:37]} Bf7 {[%emt 0:00:25]} 25. h4 {[%emt 0:10:42]} Qb4 {[%emt 0:15:36]} 26. g3 {[%emt 0:02:46]} Qc5 {[%emt 0:01:20]} 27. Qa1 {[%emt 0:01:36]} Be8 {[%emt 0:01:03]} 28. Bg4 {[%emt 0:03:08]} Qc4 {[%emt 0:08:21]} 29. Qd4 {[%emt 0:00:37]} Qxd4 {[%emt 0:00:42]} 30. Bxe6+ {[%emt 0:00:38]} Bf7 {[%emt 0:00:06]} 31. Bxf7+ {[%emt 0:00:16]} Kxf7 {[%emt 0:00:01]} 32. exd4 {[%emt 0:00:06]} Rc4 {[%emt 0:01:23]} 33. Rb1 {[%emt 0:01:50]} b6 {[%emt 0:00:03]} 34. axb6 {[%emt 0:00:38]} axb6 {[%emt 0:00:02]} 35. d5 {[%emt 0:00:06]} Rc5 {[%emt 0:00:07]} 36. Rxb6 {[%emt 0:00:44]} Rxd5 {[%emt 0:00:02]} 37. Kg2 {[%emt 0:00:29]} h5 {[%emt 0:00:26]} 38. Rb4 {[%emt 0:00:04]} g6 {[%emt 0:00:15]} 39. Kf3 {[%emt 0:00:03]} Ra5 {[%emt 0:00:10]} 40. Ke4 {[%emt 0:00:00]} Kg7 {[%emt 0:00:00]} 41. Rd4 {[%emt 0:01:01]} Ra2 {[%emt 0:00:31]} 42. f3 {[%emt 0:00:30]} Rg2 {[%emt 0:00:58]} 43. Rd7+ {[%emt 0:00:08]} Kh6 {[%emt 0:00:09]} 44. Kf4 {[%emt 0:00:06]} Ra2 {[%emt 0:00:22]} 45. Re7 {[%emt 0:00:34]} Ra4+ {[%emt 0:00:26]} 46. Re4 {[%emt 0:00:37]} Ra3 {[%emt 0:00:09]} 47. Rd4 {[%emt 0:00:06]} Rb3 {[%emt 0:00:27]} 48. Ke4 {[%emt 0:00:26]} Ra3 {[%emt 0:00:12]} 49. Rd7 {[%emt 0:00:27]} Ra4+ {[%emt 0:00:11]} 50. Ke5 {[%emt 0:00:05]} Ra5+ {[%emt 0:00:36]} 51. Ke4 {[%emt 0:01:17]} Ra4+ {[%emt 0:00:32]} 52. Ke5 {[%emt 0:00:33]} Ra5+ {[%emt 0:00:12]} 53. Ke6 {[%emt 0:00:11]} Rf5 {[%emt 0:05:09]} 54. g4 {[%emt 0:07:55]} hxg4 {[%emt 0:00:10]} 55. fxg4 {[%emt 0:00:02]} Rf4 {[%emt 0:00:12]} 56. g5+ {[%emt 0:00:53]} Kh5 {[%emt 0:00:02]} 57. Rh7+ {[%emt 0:00:14]} Kg4 {[%emt 0:00:01]} 58. Rf7 {[%emt 0:03:10]} Ra4 {[%emt 0:02:22]} 59. Kf6 {[%emt 0:00:19]} Ra6+ {[%emt 0:00:24]} 60. Kg7 {[%emt 0:00:05]} Kh5 {[%emt 0:00:28]} 1/2-1/2

[Event "Azerbaijan-ch 1st League 2025"]
[Site "Baku"]
[Date "2025.01.13"]
[Round "8.3"]
[White "Suleymanli, Suleyman"]
[Black "Orujov, Farid"]
[Result "1/2-1/2"]
[Annotator "ChessBase"]
[ECO "D00"]
[WhiteElo "2280"]
[BlackElo "2301"]
[PlyCount "171"]
[EventDate "2025.01.05"]
[EventType "swiss"]
[EventCountry "AZE"]
[SourceTitle "playchess.com"]
[Source "ChessBase"]
[SourceQuality "1"]
[TimeControl "40/5400+30:1800+30"]

1. d4 {[%emt 0:00:02]} Nf6 {[%emt 0:00:16]} 2. Nc3 {[%emt 0:00:05]} d5 {[%emt 0:00:23]} 3. Bf4 {[%emt 0:00:04]} a6 {[%emt 0:01:51]} 4. a3 {[%emt 0:00:23]} c5 {[%emt 0:00:33]} 5. dxc5 {[%emt 0:01:07]} Nc6 {[%emt 0:00:37]} 6. e3 {[%emt 0:00:54]} e5 {[%emt 0:02:43]} 7. Bg5 {[%emt 0:00:07]} Be6 {[%emt 0:12:12]} 8. b4 {[%emt 0:01:04]} Be7 {[%emt 0:08:40]} 9. Nf3 {[%emt 0:02:55]} O-O {[%emt 0:02:44]} 10. Be2 {[%emt 0:01:27]} h6 {[%emt 0:04:50]} 11. Bxf6 {[%emt 0:01:27]} Bxf6 {[%emt 0:00:27]} 12. e4 {[%emt 0:06:12]} dxe4 {[%emt 0:05:29]} 13. Nxe4 {[%emt 0:00:57]} Be7 {[%emt 0:00:01]} 14. Nd6 {[%emt 0:33:43]} b6 {[%emt 0:03:15]} 15. O-O {[%emt 0:01:36]} bxc5 {[%emt 0:01:58]} 16. bxc5 {[%emt 0:00:45]} Qa5 {[%emt 0:01:32]} 17. Nb7 {[%emt 0:05:01]} Qc7 {[%emt 0:01:54]} 18. Rb1 {[%emt 0:00:26]} Rfb8 {[%emt 0:01:25]} 19. Nd6 {[%emt 0:00:17]} Na5 {[%emt 0:11:06]} 20. Rxb8+ {[%emt 0:01:57]} Rxb8 {[%emt 0:00:40]} 21. Bxa6 {[%emt 0:02:38]} Qxc5 {[%emt 0:00:55]} 22. Ne4 {[%emt 0:00:43]} Qc6 {[%emt 0:04:49]} 23. Bd3 {[%emt 0:01:24]} f5 {[%emt 0:02:54]} 24. Ng3 {[%emt 0:02:17]} e4 {[%emt 0:02:09]} 25. Nd4 {[%emt 0:00:13]} Qd5 {[%emt 0:03:28]} 26. Be2 {[%emt 0:02:54]} Rd8 {[%emt 0:03:06]} 27. c3 {[%emt 0:07:06]} f4 {[%emt 0:09:35]} 28. Nxe4 {[%emt 0:01:58]} Qxe4 {[%emt 0:01:02]} 29. Bf3 {[%emt 0:07:50]} Qg6 {[%emt 0:00:36]} 30. Re1 {[%emt 0:16:34]} Bb3 {[%emt 0:00:33]} 31. Qe2 {[%emt 0:00:34]} Bf7 {[%emt 0:08:41]} 32. Qb5 {[%emt 0:00:27]} Bxa3 {[%emt 0:05:35]} 33. Qxa5 {[%emt 0:00:08]} Re8 {[%emt 0:00:18]} 34. Rxe8+ {[%emt 0:00:34]} Bxe8 {[%emt 0:00:01]} 35. h3 {[%emt 0:01:08]} Be7 {[%emt 0:00:40]} 36. Nf5 {[%emt 0:00:37]} Bf8 {[%emt 0:00:51]} 37. Be4 {[%emt 0:00:46]} Qf6 {[%emt 0:00:23]} 38. Qa8 {[%emt 0:00:33]} Bf7 {[%emt 0:00:40]} 39. Nd4 {[%emt 0:00:30]} Qe5 {[%emt 0:00:36]} 40. Qb7 {[%emt 0:00:00]} g6 {[%emt 0:00:00]} 41. Qc6 {[%emt 0:03:00]} Kg7 {[%emt 0:05:49]} 42. Kf1 {[%emt 0:08:50]} Qc5 {[%emt 0:07:21]} 43. Ke2 {[%emt 0:06:45]} Qxc6 {[%emt 0:01:14]} 44. Bxc6 {[%emt 0:00:27]} Kf6 {[%emt 0:00:33]} 45. Kd3 {[%emt 0:00:18]} g5 {[%emt 0:00:42]} 46. Be4 {[%emt 0:02:32]} Bc5 {[%emt 0:00:42]} 47. f3 {[%emt 0:01:23]} h5 {[%emt 0:01:07]} 48. c4 {[%emt 0:00:37]} Bg8 {[%emt 0:02:17]} 49. Nb3 {[%emt 0:00:52]} Be3 {[%emt 0:01:47]} 50. Kc3 {[%emt 0:02:30]} Ke5 {[%emt 0:01:23]} 51. Bg6 {[%emt 0:01:14]} h4 {[%emt 0:00:18]} 52. Na5 {[%emt 0:01:45]} Be6 {[%emt 0:02:17]} 53. Nc6+ {[%emt 0:01:06]} Kd6 {[%emt 0:00:13]} 54. Nd4 {[%emt 0:01:03]} Bd7 {[%emt 0:00:30]} 55. Nc2 {[%emt 0:02:56]} Bc5 {[%emt 0:03:01]} 56. Nd4 {[%emt 0:01:55]} Ke5 {[%emt 0:00:39]} 57. Nb3 {[%emt 0:00:11]} Kd6 {[%emt 0:00:00]} 58. Nd2 {[%emt 0:00:10]} Bc6 {[%emt 0:00:26]} 59. Be4 {[%emt 0:00:01]} Bd7 {[%emt 0:00:30]} 60. Ba8 {[%emt 0:00:04]} Bf5 {[%emt 0:00:16]} 61. Be4 {[%emt 0:00:06]} Bd7 {[%emt 0:00:02]} 62. Kd3 {[%emt 0:03:21]} Be3 {[%emt 0:00:54]} 63. Nb3 {[%emt 0:00:14]} Ba4 {[%emt 0:00:46]} 64. Nd4 {[%emt 0:00:22]} Bd7 {[%emt 0:00:58]} 65. Nb3 {[%emt 0:00:53]} Ba4 {[%emt 0:00:04]} 66. Nd4 {[%emt 0:00:03]} Bd7 {[%emt 0:00:06]} 67. Nc2 {[%emt 0:00:51]} Bc5 {[%emt 0:00:24]} 68. Kc3 {[%emt 0:00:08]} Ba4 {[%emt 0:00:55]} 69. Ne1 {[%emt 0:00:34]} Be8 {[%emt 0:00:26]} 70. Nd3 {[%emt 0:00:23]} Bd7 {[%emt 0:00:43]} 71. Nb4 {[%emt 0:00:59]} Be6 {[%emt 0:00:39]} 72. Nc2 {[%emt 0:00:38]} Bd7 {[%emt 0:00:26]} 73. Nd4 {[%emt 0:00:01]} Ke5 {[%emt 0:00:52]} 74. Nb3 {[%emt 0:00:05]} Kd6 {[%emt 0:00:37]} 75. Kd3 {[%emt 0:00:29]} Be3 {[%emt 0:00:36]} 76. Kc3 {[%emt 0:01:21]} Bc5 {[%emt 0:00:20]} 77. Na5 {[%emt 0:00:16]} Bc8 {[%emt 0:03:39]} 78. Kd3 {[%emt 0:00:47]} Bb4 {[%emt 0:00:42]} 79. Nc6 {[%emt 0:00:39]} Bc5 {[%emt 0:00:25]} 80. Na5 {[%emt 0:00:01]} Bb4 {[%emt 0:00:01]} 81. Nb3 {[%emt 0:00:41]} Ke5 {[%emt 0:01:10]} 82. Nd4 {[%emt 0:00:24]} Bc5 {[%emt 0:00:41]} 83. Ne2 {[%emt 0:00:01]} Bb4 {[%emt 0:00:25]} 84. Nd4 {[%emt 0:00:31]} Bc5 {[%emt 0:00:09]} 85. Nb3 {[%emt 0:00:16]} Bb4 {[%emt 0:00:17]} 86. Nd4 {[%emt 0:00:22]} 1/2-1/2

[Event "Azerbaijan-ch 1st League 2025"]
[Site "Baku"]
[Date "2025.01.13"]
[Round "8.4"]
[White "Isbatov, Kanan"]
[Black "Rustamov, Rustam"]
[Result "0-1"]
[Annotator "RC"]
[ECO "A04"]
[WhiteElo "1882"]
[BlackElo "2305"]
[PlyCount "116"]
[EventDate "2025.01.05"]
[EventType "swiss"]
[EventCountry "AZE"]
[SourceTitle "playchess.com"]
[Source "ChessBase"]
[SourceQuality "1"]
[TimeControl "40/5400+30:1800+30"]

1. Nf3 {[%emt 0:00:10]} c5 {[%emt 0:00:20]} 2. g3 {[%emt 0:00:12]} Nc6 {[%emt 0:00:20]} 3. d4 {[%emt 0:00:11]} cxd4 {[%emt 0:01:55]} 4. Nxd4 {[%emt 0:00:03]} e5 {[%emt 0:00:47]} 5. Nxc6 {[%emt 0:00:29]} bxc6 {[%emt 0:04:20]} 6. Bg2 {[%emt 0:00:17]} Nf6 {[%emt 0:00:52]} 7. c4 {[%emt 0:00:48]} Bb4+ {[%emt 0:03:19]} 8. Nc3 {[%emt 0:00:11]} Ba6 {[%emt 0:02:38]} 9. Qb3 {[%emt 0:14:01]} Rb8 {[%emt 0:04:01]} 10. O-O {[%emt 0:02:45]} O-O {[%emt 0:01:06]} 11. a3 {[%emt 0:10:34]} Bc5 {[%emt 0:07:39]} 12. Qa4 {[%emt 0:06:10]} Qc8 {[%emt 0:05:29]} 13. Rb1 {[%emt 0:22:24]} h6 {[%emt 0:03:35]} 14. e3 {[%emt 0:03:41]} d5 {[%emt 0:05:31]} 15. b4 {[%emt 0:00:11]} Bd6 {[%emt 0:12:16]} 16. b5 {[%emt 0:03:41]} cxb5 {[%emt 0:02:15]} 17. cxb5 {[%emt 0:01:04]} Qxc3 {[%emt 0:05:29]} 18. Qxa6 {[%emt 0:00:11]} Qc2 {[%emt 0:05:26]} 19. Rb2 {[%emt 0:04:28]} Qc5 {[%emt 0:02:07]} 20. a4 {[%emt 0:09:31]} Qb6 {[%emt 0:02:01]} 21. Qxb6 {[%emt 0:01:21]} axb6 {[%emt 0:01:17]} 22. Bxd5 {[%emt 0:07:10]} Nxd5 {[%emt 0:00:18]} 23. Rd2 {[%emt 0:00:01]} Nxe3 {[%emt 0:00:12]} 24. fxe3 {[%emt 0:00:01]} Bc5 {[%emt 0:00:14]} 25. Rd5 {[%emt 0:00:02]} Ra8 {[%emt 0:00:35]} 26. Rxe5 {[%emt 0:01:57]} Rxa4 {[%emt 0:00:05]} 27. Bd2 {[%emt 0:05:53]} Rc4 {[%emt 0:01:00]} 28. Rf2 {[%emt 0:04:01]} Rd8 {[%emt 0:01:22]} 29. Kg2 {[%emt 0:00:31]} f6 {[%emt 0:02:40]} 30. Re6 {[%emt 0:00:54]} Rd3 {[%emt 0:00:58]} 31. Kf3 {[%emt 0:00:54]} Rb3 {[%emt 0:02:43]} 32. Re4 {[%emt 0:00:48]} Rc2 {[%emt 0:01:11]} 33. Be1 {[%emt 0:00:26]} Rc1 {[%emt 0:00:21]} 34. Bd2 {[%emt 0:00:37]} Ra1 {[%emt 0:00:21]} 35. h4 {[%emt 0:00:47]} Rxb5 {[%emt 0:01:29]} 36. Bc3 {[%emt 0:00:12]} Rd1 {[%emt 0:02:27]} 37. Bd4 {[%emt 0:00:27]} Bxd4 {[%emt 0:05:15]} 38. exd4 {[%emt 0:00:01]} Rb4 {[%emt 0:00:13]} 39. Re8+ {[%emt 0:01:27]} Kh7 {[%emt 0:01:02]} 40. Rc2 {[%emt 0:00:00]} Rd3+ {[%emt 0:00:00]} 41. Re3 {[%emt 0:09:07]} Rdxd4 {[%emt 0:01:44]} 42. Rc7 {[%emt 0:04:46]} h5 {[%emt 0:00:51]} 43. Rb7 {[%emt 0:03:30]} Rg4 {[%emt 0:00:42]} 44. Rd3 {[%emt 0:00:14]} Rb2 {[%emt 0:00:54]} 45. Rb8 {[%emt 0:05:10]} Kg6 {[%emt 0:01:54]} 46. Rb7 {[%emt 0:00:32]} Rb1 {[%emt 0:00:41]} 47. Rdd7 {[%emt 0:00:57]} Rb3+ {[%emt 0:00:17]} 48. Kf2 {[%emt 0:00:01]} Kh6 {[%emt 0:00:34]} 49. Rd8 {[%emt 0:01:14]} Rc4 {[%emt 0:03:45]} 50. Rd2 {[%emt 0:00:56]} Rcc3 {[%emt 0:00:11]} 51. Rb8 {[%emt 0:07:29]} Rf3+ {[%emt 0:00:18]} 52. Ke1 {[%emt 0:00:11]} Rxg3 {[%emt 0:00:30]} 53. Rh8+ {[%emt 0:02:12]} Kg6 {[%emt 0:01:30]} 54. Rhd8 {[%emt 0:01:04]} Rg4 {[%emt 0:00:32]} 55. R8d4 {[%emt 0:00:13]} Rb4 {[%emt 0:00:23]} 56. Rxb4 {[%emt 0:00:17]} Rxb4 {[%emt 0:02:06]} 57. Rg2+ {[%emt 0:00:15]} Kh6 {[%emt 0:00:04]} 58. Rh2 {[%emt 0:00:08]} Rb1+ {[%emt 0:00:03]} 0-1

[Event "Azerbaijan-ch 1st League 2025"]
[Site "Baku"]
[Date "2025.01.13"]
[Round "8.5"]
[White "Ughuzov, Ravan"]
[Black "Hamidov, Allahverdi"]
[Result "1-0"]
[Annotator "RC"]
[ECO "C04"]
[WhiteElo "2250"]
[BlackElo "2200"]
[PlyCount "81"]
[EventDate "2025.01.05"]
[EventType "swiss"]
[EventCountry "AZE"]
[SourceTitle "playchess.com"]
[Source "ChessBase"]
[SourceQuality "1"]
[TimeControl "40/5400+30:1800+30"]

1. e4 {[%emt 0:00:04]} e6 {[%emt 0:00:06]} 2. d4 {[%emt 0:00:15]} d5 {[%emt 0:00:04]} 3. Nd2 {[%emt 0:02:05]} Nc6 {[%emt 0:00:11]} 4. Ngf3 {[%emt 0:00:12]} Nf6 {[%emt 0:00:13]} 5. e5 {[%emt 0:00:04]} Nd7 {[%emt 0:00:06]} 6. Nb3 {[%emt 0:00:21]} a5 {[%emt 0:00:16]} 7. a4 {[%emt 0:00:34]} Be7 {[%emt 0:02:25]} 8. c3 {[%emt 0:00:50]} f6 {[%emt 0:11:16]} 9. exf6 {[%emt 0:22:43]} Bxf6 {[%emt 0:00:41]} 10. Ng5 {[%emt 0:04:46]} Qe7 {[%emt 0:05:28]} 11. f4 {[%emt 0:03:13]} Bxg5 {[%emt 0:01:34]} 12. Qh5+ {[%emt 0:00:16]} g6 {[%emt 0:00:17]} 13. Qxg5 {[%emt 0:00:04]} Qxg5 {[%emt 0:00:14]} 14. fxg5 {[%emt 0:00:01]} O-O {[%emt 0:03:45]} 15. Be3 {[%emt 0:00:47]} b6 {[%emt 0:02:22]} 16. O-O-O {[%emt 0:12:19]} Ba6 {[%emt 0:29:57]} 17. Bxa6 {[%emt 0:01:35]} Rxa6 {[%emt 0:00:04]} 18. g3 {[%emt 0:01:39]} Raa8 {[%emt 0:02:04]} 19. Bf4 {[%emt 0:00:27]} Rac8 {[%emt 0:00:07]} 20. h4 {[%emt 0:03:21]} Nd8 {[%emt 0:01:58]} 21. h5 {[%emt 0:01:02]} Nf7 {[%emt 0:01:27]} 22. Rh2 {[%emt 0:04:17]} c5 {[%emt 0:04:36]} 23. dxc5 {[%emt 0:03:28]} bxc5 {[%emt 0:07:24]} 24. hxg6 {[%emt 0:04:48]} hxg6 {[%emt 0:00:07]} 25. Nxa5 {[%emt 0:03:31]} e5 {[%emt 0:08:30]} 26. Rxd5 {[%emt 0:01:44]} Nb6 {[%emt 0:13:30]} 27. Rxe5 {[%emt 0:00:14]} Nxe5 {[%emt 0:00:05]} 28. Bxe5 {[%emt 0:00:03]} Nxa4 {[%emt 0:02:50]} 29. Nc4 {[%emt 0:00:37]} Kf7 {[%emt 0:02:04]} 30. b3 {[%emt 0:00:42]} Ke6 {[%emt 0:00:59]} 31. bxa4 {[%emt 0:02:00]} Ra8 {[%emt 0:00:32]} 32. Bf6 {[%emt 0:00:26]} Rxa4 {[%emt 0:00:34]} 33. Re2+ {[%emt 0:00:15]} Kf5 {[%emt 0:00:31]} 34. Re5+ {[%emt 0:00:59]} Kg4 {[%emt 0:00:05]} 35. Rxc5 {[%emt 0:00:22]} Ra2 {[%emt 0:00:54]} 36. Rd5 {[%emt 0:01:43]} Re8 {[%emt 0:00:42]} 37. Ne5+ {[%emt 0:00:25]} Kxg3 {[%emt 0:00:09]} 38. Rd2 {[%emt 0:00:12]} Ra1+ {[%emt 0:00:22]} 39. Kc2 {[%emt 0:00:56]} Re6 {[%emt 0:00:30]} 40. Rd4 {[%emt 0:00:00]} Rb6 {[%emt 0:00:00]} 41. Kd3 {[%emt 0:01:02]} 1-0

[Event "Azerbaijan-ch 1st League 2025"]
[Site "Baku"]
[Date "2025.01.13"]
[Round "8.6"]
[White "Salimov, Shovkat"]
[Black "Garayev, Kanan"]
[Result "0-1"]
[Annotator "RC"]
[ECO "B38"]
[WhiteElo "1977"]
[BlackElo "2340"]
[PlyCount "166"]
[EventDate "2025.01.05"]
[EventType "swiss"]
[EventCountry "AZE"]
[SourceTitle "playchess.com"]
[Source "ChessBase"]
[SourceQuality "1"]
[TimeControl "40/5400+30:1800+30"]

1. e4 {[%emt 0:00:29]} c5 {[%emt 0:02:45]} 2. Nf3 {[%emt 0:00:11]} g6 {[%emt 0:00:35]} 3. d4 {[%emt 0:00:15]} cxd4 {[%emt 0:00:06]} 4. Nxd4 {[%emt 0:00:06]} Bg7 {[%emt 0:00:05]} 5. c4 {[%emt 0:00:37]} Nc6 {[%emt 0:02:04]} 6. Be3 {[%emt 0:00:12]} Nf6 {[%emt 0:01:05]} 7. Nc3 {[%emt 0:00:14]} d6 {[%emt 0:00:29]} 8. Be2 {[%emt 0:00:29]} O-O {[%emt 0:01:30]} 9. O-O {[%emt 0:00:07]} Bd7 {[%emt 0:01:56]} 10. f3 {[%emt 0:04:41]} Qb6 {[%emt 0:05:44]} 11. Na4 {[%emt 0:44:48]} Qa5 {[%emt 0:01:32]} 12. Nc3 {[%emt 0:07:01]} Nxd4 {[%emt 0:06:33]} 13. Bxd4 {[%emt 0:00:05]} Be6 {[%emt 0:00:16]} 14. Rc1 {[%emt 0:04:04]} Rfc8 {[%emt 0:01:58]} 15. b3 {[%emt 0:00:01]} a6 {[%emt 0:02:55]} 16. Qd2 {[%emt 0:19:39]} b5 {[%emt 0:14:15]} 17. cxb5 {[%emt 0:00:01]} axb5 {[%emt 0:00:01]} 18. Rfd1 {[%emt 0:01:18]} b4 {[%emt 0:01:23]} 19. Na4 {[%emt 0:01:01]} Nd7 {[%emt 0:00:14]} 20. Bxg7 {[%emt 0:00:09]} Kxg7 {[%emt 0:00:01]} 21. Rc2 {[%emt 0:03:59]} Rxc2 {[%emt 0:07:36]} 22. Qxc2 {[%emt 0:00:01]} Kg8 {[%emt 0:00:18]} 23. Rc1 {[%emt 0:04:34]} Nb6 {[%emt 0:04:18]} 24. Nxb6 {[%emt 0:00:51]} Qxb6+ {[%emt 0:00:04]} 25. Kf1 {[%emt 0:00:12]} Qa7 {[%emt 0:00:27]} 26. Qd2 {[%emt 0:00:58]} Qxa2 {[%emt 0:01:45]} 27. Qxb4 {[%emt 0:00:05]} Qxb3 {[%emt 0:01:46]} 28. Qxb3 {[%emt 0:00:05]} Bxb3 {[%emt 0:00:03]} 29. Rb1 {[%emt 0:03:08]} Ra3 {[%emt 0:00:31]} 30. Rb2 {[%emt 0:00:23]} Kg7 {[%emt 0:00:25]} 31. Kf2 {[%emt 0:01:15]} Kf6 {[%emt 0:02:17]} 32. Rd2 {[%emt 0:00:01]} Be6 {[%emt 0:02:34]} 33. Bb5 {[%emt 0:02:36]} g5 {[%emt 0:02:04]} 34. Be2 {[%emt 0:00:42]} Ke5 {[%emt 0:03:17]} 35. Rb2 {[%emt 0:01:31]} f5 {[%emt 0:00:14]} 36. Rb5+ {[%emt 0:00:40]} Kf6 {[%emt 0:00:01]} 37. Rb4 {[%emt 0:00:53]} Ra2 {[%emt 0:01:08]} 38. Ke3 {[%emt 0:01:30]} f4+ {[%emt 0:02:58]} 39. Kf2 {[%emt 0:00:01]} Ke5 {[%emt 0:01:09]} 40. Kf1 {[%emt 0:00:00]} d5 {[%emt 0:00:00]} 41. exd5 {[%emt 0:01:48]} Bxd5 {[%emt 0:08:38]} 42. h3 {[%emt 0:26:17]} h5 {[%emt 0:01:16]} 43. Rb1 {[%emt 0:01:53]} e6 {[%emt 0:02:24]} 44. Re1 {[%emt 0:00:43]} Kf6 {[%emt 0:00:02]} 45. Bd3 {[%emt 0:00:53]} g4 {[%emt 0:04:53]} 46. hxg4 {[%emt 0:00:12]} hxg4 {[%emt 0:00:01]} 47. Be2 {[%emt 0:01:55]} e5 {[%emt 0:01:28]} 48. fxg4 {[%emt 0:01:20]} e4 {[%emt 0:00:36]} 49. Rd1 {[%emt 0:00:25]} Be6 {[%emt 0:01:58]} 50. Rc1 {[%emt 0:00:29]} Ke5 {[%emt 0:01:21]} 51. g5 {[%emt 0:00:33]} Ra8 {[%emt 0:00:02]} 52. g6 {[%emt 0:00:20]} Rg8 {[%emt 0:00:16]} 53. Rc5+ {[%emt 0:00:42]} Kd4 {[%emt 0:00:37]} 54. Rc6 {[%emt 0:00:27]} Rxg6 {[%emt 0:00:52]} 55. Ra6 {[%emt 0:00:01]} Ke5 {[%emt 0:03:41]} 56. Ra5+ {[%emt 0:00:45]} Bd5 {[%emt 0:00:12]} 57. Bc4 {[%emt 0:00:37]} Rd6 {[%emt 0:00:01]} 58. Bxd5 {[%emt 0:00:24]} Rxd5 {[%emt 0:00:02]} 59. Ra4 {[%emt 0:00:15]} Rb5 {[%emt 0:06:36]} 60. Rc4 {[%emt 0:01:03]} Kf5 {[%emt 0:00:07]} 61. Rc2 {[%emt 0:00:25]} Kg4 {[%emt 0:00:21]} 62. Rc8 {[%emt 0:00:35]} Rg5 {[%emt 0:04:40]} 63. Rf8 {[%emt 0:00:22]} Ra5 {[%emt 0:01:08]} 64. Rf7 {[%emt 0:00:31]} Ra1+ {[%emt 0:01:09]} 65. Ke2 {[%emt 0:00:17]} Ra2+ {[%emt 0:03:12]} 66. Kf1 {[%emt 0:00:07]} Kg5 {[%emt 0:00:14]} 67. Rf8 {[%emt 0:00:16]} Ra6 {[%emt 0:00:24]} 68. Kf2 {[%emt 0:01:01]} Rf6 {[%emt 0:00:01]} 69. Re8 {[%emt 0:00:16]} Kf5 {[%emt 0:01:16]} 70. Re7 {[%emt 0:00:01]} Ra6 {[%emt 0:00:22]} 71. Re8 {[%emt 0:00:55]} Re6 {[%emt 0:00:33]} 72. Rf8+ {[%emt 0:00:28]} Ke5 {[%emt 0:00:08]} 73. Rf7 {[%emt 0:00:56]} Rd6 {[%emt 0:01:19]} 74. Rf8 {[%emt 0:00:28]} Rd2+ {[%emt 0:00:18]} 75. Kg1 {[%emt 0:00:52]} Kd4 {[%emt 0:00:30]} 76. Rxf4 {[%emt 0:00:20]} Kd3 {[%emt 0:00:01]} 77. Rf8 {[%emt 0:00:29]} Rd1+ {[%emt 0:01:16]} 78. Kf2 {[%emt 0:00:35]} e3+ {[%emt 0:00:28]} 79. Kg3 {[%emt 0:00:02]} e2 {[%emt 0:00:06]} 80. Rd8+ {[%emt 0:01:03]} Kc4 {[%emt 0:00:02]} 81. Re8 {[%emt 0:00:29]} e1=Q+ {[%emt 0:00:09]} 82. Rxe1 {[%emt 0:00:14]} Rxe1 {[%emt 0:00:03]} 83. Kf4 {[%emt 0:00:01]} Kd5 {[%emt 0:00:09]} 0-1

[Event "Azerbaijan-ch 1st League 2025"]
[Site "Baku"]
[Date "2025.01.13"]
[Round "8.7"]
[White "Gurbanov, Ismayil"]
[Black "Allajov, Ramil"]
[Result "1/2-1/2"]
[Annotator "RC"]
[ECO "B29"]
[WhiteElo "2248"]
[BlackElo "2079"]
[PlyCount "91"]
[EventDate "2025.01.05"]
[EventType "swiss"]
[EventCountry "AZE"]
[SourceTitle "playchess.com"]
[Source "ChessBase"]
[SourceQuality "1"]
[TimeControl "40/5400+30:1800+30"]

1. e4 {[%emt 0:07:38]} c5 {[%emt 0:00:05]} 2. Nf3 {[%emt 0:00:04]} Nf6 {[%emt 0:00:05]} 3. e5 {[%emt 0:03:35]} Nd5 {[%emt 0:00:05]} 4. Nc3 {[%emt 0:00:05]} Nc7 {[%emt 0:04:34]} 5. d4 {[%emt 0:01:42]} cxd4 {[%emt 0:00:17]} 6. Nxd4 {[%emt 0:00:09]} Nc6 {[%emt 0:00:26]} 7. Nxc6 {[%emt 0:00:14]} dxc6 {[%emt 0:00:40]} 8. Qxd8+ {[%emt 0:01:31]} Kxd8 {[%emt 0:00:01]} 9. Be3 {[%emt 0:00:50]} g6 {[%emt 0:05:54]} 10. O-O-O+ {[%emt 0:04:53]} Ke8 {[%emt 0:00:31]} 11. Bc4 {[%emt 0:01:30]} Bg7 {[%emt 0:01:01]} 12. f4 {[%emt 0:01:21]} Be6 {[%emt 0:07:42]} 13. Bxe6 {[%emt 0:00:15]} Nxe6 {[%emt 0:00:01]} 14. Rd2 {[%emt 0:00:10]} b6 {[%emt 0:06:22]} 15. Rhd1 {[%emt 0:03:05]} Rd8 {[%emt 0:00:01]} 16. a4 {[%emt 0:00:54]} Rxd2 {[%emt 0:00:03]} 17. Rxd2 {[%emt 0:00:03]} f6 {[%emt 0:00:23]} 18. exf6 {[%emt 0:00:04]} Bxf6 {[%emt 0:00:03]} 19. Ne4 {[%emt 0:00:05]} Bg7 {[%emt 0:00:07]} 20. g3 {[%emt 0:01:26]} Rf8 {[%emt 0:00:14]} 21. a5 {[%emt 0:05:00]} Rf5 {[%emt 0:01:23]} 22. axb6 {[%emt 0:00:16]} axb6 {[%emt 0:00:00]} 23. c3 {[%emt 0:00:20]} b5 {[%emt 0:02:10]} 24. Kc2 {[%emt 0:00:31]} Rd5 {[%emt 0:04:50]} 25. Re2 {[%emt 0:01:38]} Kd7 {[%emt 0:00:26]} 26. Re1 {[%emt 0:00:35]} c5 {[%emt 0:05:16]} 27. Ra1 {[%emt 0:01:25]} c4 {[%emt 0:00:30]} 28. Ra7+ {[%emt 0:00:23]} Ke8 {[%emt 0:00:01]} 29. Rb7 {[%emt 0:06:39]} h6 {[%emt 0:05:23]} 30. h4 {[%emt 0:00:56]} Kf8 {[%emt 0:05:39]} 31. Nc5 {[%emt 0:04:33]} Rxc5 {[%emt 0:03:36]} 32. Bxc5 {[%emt 0:04:33]} Nxc5 {[%emt 0:00:05]} 33. Rxb5 {[%emt 0:00:03]} Ne4 {[%emt 0:00:16]} 34. Rb4 {[%emt 0:03:17]} Nd6 {[%emt 0:00:28]} 35. b3 {[%emt 0:00:49]} cxb3+ {[%emt 0:00:05]} 36. Kd3 {[%emt 0:00:02]} h5 {[%emt 0:04:36]} 37. Rxb3 {[%emt 0:02:48]} e5 {[%emt 0:00:22]} 38. Rb8+ {[%emt 0:05:12]} Kf7 {[%emt 0:01:28]} 39. c4 {[%emt 0:00:08]} e4+ {[%emt 0:00:33]} 40. Ke3 {[%emt 0:00:00]} Nxc4+ {[%emt 0:00:00]} 41. Kxe4 {[%emt 0:00:10]} Nd6+ {[%emt 0:00:35]} 42. Kf3 {[%emt 0:00:02]} Bf6 {[%emt 0:02:32]} 43. g4 {[%emt 0:02:19]} hxg4+ {[%emt 0:00:06]} 44. Kxg4 {[%emt 0:00:06]} Nf5 {[%emt 0:00:02]} 45. Rb7+ {[%emt 0:01:00]} Be7 {[%emt 0:00:19]} 46. Rxe7+ {[%emt 0:00:16]} 1/2-1/2